fUST/lending_fUST_20250224
["ID","MTS","AMOUNT","RATE_DAILY","PERIOD"]
[354188556,1740340244372,-500.0,0.00013945,2]
[354188557,1740340244381,-979.16,0.00013945,2]
[354188558,1740340244390,-1297.17,0.00013945,2]
[354188559,1740340244399,-500.0,0.00013945,2]
[354188560,1740340244408,-4475.98,0.00013945,2]
[354188561,1740340244418,-500.0,0.00013945,2]
[354188562,1740340244428,-500.0,0.00013945,2]
[354188563,1740340244438,-698.19,0.00013945,2]
[354188564,1740340244447,-1140.07,0.00013945,2]
[354188565,1740340244456,-500.0,0.00013945,2]
[354188566,1740340244465,-500.0,0.00013945,2]
[354188567,1740340244474,-2339.09,0.00013945,2]
[354188568,1740340244483,-520.90307063,0.00013945,2]
[354188569,1740340244493,-3101.14,0.00013945,2]
[354188570,1740340244502,-13960.93,0.00013945,2]
[354188571,1740340244511,-1279.21,0.00013945,2]
[354188572,1740340244519,-1447.38,0.00013945,2]
[354188573,1740340244529,-544.83,0.00013945,2]
[354188574,1740340244537,-518.13,0.00013945,2]
[354188575,1740340244546,-400.85,0.00013945,2]
[354188576,1740340244555,-500.0,0.00013945,2]
[354188577,1740340244564,-500.0,0.00013945,2]
[354188578,1740340244573,-500.0,0.00013945,2]
[354188579,1740340244582,-1503.46,0.00013949,2]
[354188580,1740340244591,-2000.0,0.0001395,2]
[354188581,1740340244600,-500.51026839,0.00013973,2]
[354188582,1740340244609,-500.76722228,0.00013973,2]
[354188583,1740340244619,-500.0,0.00013973,2]
[354188584,1740340244628,-500.0,0.00013973,2]
[354188585,1740340244637,-500.0,0.00013973,2]
[354188586,1740340244646,-237.90476766,0.00013973,2]
[354188587,1740340244656,-268.25898527,0.00013973,2]
[354188588,1740340244665,-500.0,0.00013973,2]
[354188589,1740340244674,-500.0,0.00013973,2]
[354188590,1740340244683,-500.0,0.00013999,2]
[354188591,1740340244692,-500.0,0.00013999,2]
[354188592,1740340244701,-320.96387242,0.00013999,2]
[354188593,1740340244710,-1503.46,0.00013999,2]
[354188594,1740340244719,-1503.46,0.00013999,2]
[354188595,1740340244728,-1503.46,0.00013999,2]
[354188596,1740340244737,-1503.46,0.00013999,2]
[354188597,1740340244746,-1503.46,0.00013999,2]
[354188598,1740340244755,-1503.46,0.00013999,2]
[354188599,1740340244764,-1503.46,0.00013999,2]
[354188600,1740340244773,-1503.46,0.00013999,2]
[354188601,1740340244782,-1503.46,0.00013999,2]
[354188602,1740340244862,-1503.46,0.00013999,2]
[354188603,1740340244881,-1503.46,0.00013999,2]
[354188604,1740340244891,-1503.53618129,0.00013999,2]
[354188605,1740340244900,-116185.17615367,0.00014,5]
[354188606,1740340244909,-10934.81801912,0.00014,5]
[354188607,1740340244918,-1341526.64440512,0.00014,5]
[354188608,1740340245063,-99.97911693,0.00014,5]
[354188648,1740341211091,159.897085,9.041e-05,2]
[354188677,1740341431814,-700.0,0.00011568,2]
[354188678,1740341431825,-259.595,0.00012719,2]
[354188679,1740341431837,-5583.5008055,0.00012719,2]
[354188680,1740341431846,-700.0,0.00012938,2]
[354188681,1740341431855,-396.0,0.00013098,2]
[354188682,1740341431865,-300.0,0.00013638,2]
[354188683,1740341431874,-8325.53199546,0.00013639,2]
[354188684,1740341431918,-950.84858422,0.00013639,2]
[354188712,1740341437659,-2930.84148076,0.00013639,2]
[354188713,1740341437671,-717.6746839,0.00013639,2]
[354188714,1740341437681,-223.45375613,0.0001368,2]
[354188715,1740341437690,-500.0,0.00013698,2]
[354188716,1740341437699,-500.0,0.00013698,2]
[354188717,1740341437708,-500.0,0.00013698,2]
[354188718,1740341437717,-204.87314872,0.00013698,2]
[354188719,1740341437728,-500.0,0.00013698,2]
[354188720,1740341437737,-500.0,0.00013698,2]
[354188721,1740341437746,-500.0,0.00013698,2]
[354188722,1740341437755,-500.0,0.00013698,2]
[354188723,1740341437764,-500.0,0.00013698,2]
[354188724,1740341437774,-500.0,0.00013698,2]
[354188725,1740341437782,-333.19807125,0.00013698,2]
[354188726,1740341437791,-500.0,0.00013698,2]
[354188727,1740341437800,-500.0,0.00013698,2]
[354188728,1740341437809,-500.0,0.00013698,2]
[354188729,1740341437818,-500.0,0.00013698,2]
[354188731,1740341437827,-500.0,0.00013698,2]
[354188733,1740341437836,-377.1476117,0.00013698,2]
[354188734,1740341437845,-500.0,0.00013698,2]
[354188735,1740341437854,-407.52859083,0.00013698,2]
[354188736,1740341437866,-92.47140917,0.00013698,2]
[354188737,1740341437875,-439.13225012,0.00013698,2]
[354188738,1740341437884,-500.0,0.00013698,2]
[354188739,1740341437893,-500.0,0.00013698,2]
[354188740,1740341437903,-500.0,0.00013698,2]
[354188741,1740341437911,-500.0,0.00013698,2]
[354188742,1740341437921,-500.0,0.00013698,2]
[354188743,1740341437930,-500.0,0.00013698,2]
[354188744,1740341437939,-780.41,0.00013698,2]
[354188745,1740341437948,-495.25718361,0.00013698,2]
[354188746,1740341437960,-4.74281639,0.00013698,2]
[354188747,1740341437970,-500.0,0.00013698,2]
[354188748,1740341437979,-500.0,0.00013698,2]
[354188749,1740341437988,-500.0,0.00013698,2]
[354188750,1740341437997,-500.0,0.00013698,2]
[354188751,1740341438007,-500.0,0.00013698,2]
[354188752,1740341438016,-554.66,0.00013698,2]
[354188753,1740341438025,-500.0,0.00013698,2]
[354188754,1740341438036,-500.0,0.00013698,2]
[354188755,1740341438045,-500.0,0.00013698,2]
[354188756,1740341438056,-500.0,0.00013698,2]
[354188757,1740341438065,-500.0,0.00013698,2]
[354188758,1740341438074,-602.5,0.00013698,2]
[354188759,1740341438083,-500.0,0.00013698,2]
[354188760,1740341438092,-500.0,0.00013698,2]
[354188761,1740341438102,-1728.75,0.00013698,2]
[354188762,1740341438111,-146.39663123,0.00013698,2]
[354188798,1740341439907,-633.87336877,0.00013698,2]
[354188800,1740341439917,-500.0,0.00013698,2]
[354188802,1740341439926,-500.0,0.00013698,2]
[354188804,1740341439935,-500.0,0.00013698,2]
[354188806,1740341439944,-5823.76,0.00013698,2]
[354188808,1740341439953,-500.0,0.00013698,2]
[354188810,1740341439962,-500.0,0.00013698,2]
[354188812,1740341439971,-500.0,0.00013698,2]
[354188814,1740341439980,-500.0,0.00013698,2]
[354188816,1740341439989,-500.0,0.00013698,2]
[354188818,1740341439998,-500.0,0.00013698,2]
[354188819,1740341440007,-1127.59,0.00013698,2]
[354188820,1740341440016,-1127.59,0.00013698,2]
[354188821,1740341440024,-1127.59,0.00013698,2]
[354188822,1740341440033,-500.0,0.00013698,2]
[354188823,1740341440042,-500.0,0.00013698,2]
[354188824,1740341440051,-1218.61,0.00013698,2]
[354188825,1740341440060,-500.0,0.00013698,2]
[354188826,1740341440068,-500.0,0.00013698,2]
[354188827,1740341440077,-918.4,0.00013698,2]
[354188828,1740341440086,-500.0,0.00013698,2]
[354188829,1740341440095,-500.0,0.00013698,2]
[354188830,1740341440104,-500.0,0.00013698,2]
[354188831,1740341440113,-500.0,0.00013698,2]
[354188832,1740341440122,-500.0,0.00013698,2]
[354188833,1740341440131,-2927.62,0.00013698,2]
[354188834,1740341440140,-500.0,0.00013698,2]
[354188835,1740341440149,-290.03341777,0.00013698,2]
[354188836,1740341440158,-549.95163423,0.00013698,2]
[354188837,1740341440166,-501.893944,0.00013698,2]
[354188838,1740341440175,-660.84,0.00013698,2]
[354188839,1740341440184,-500.0,0.00013698,2]
[354188840,1740341440193,-500.0,0.00013698,2]
[354188842,1740341440202,-1067.24,0.00013698,2]
[354188843,1740341440212,-500.0,0.00013698,2]
[354188844,1740341440221,-1347.6,0.00013698,2]
[354188846,1740341440230,-2198.37,0.00013698,2]
[354188848,1740341440239,-500.0,0.00013698,2]
[354188850,1740341440248,-1223.33,0.00013698,2]
[354188852,1740341440257,-13184.79,0.00013698,2]
[354188854,1740341440266,-500.0,0.00013698,2]
[354188856,1740341440275,-500.0,0.00013698,2]
[354188857,1740341440284,-500.0,0.00013698,2]
[354188860,1740341440293,-500.0,0.00013698,2]
[354188862,1740341440302,-4232.56,0.00013698,2]
[354188864,1740341440311,-500.0,0.00013698,2]
[354188866,1740341440320,-520.26,0.00013698,2]
[354188868,1740341440329,-500.0,0.00013698,2]
[354188870,1740341440338,-1209.99,0.00013698,2]
[354188872,1740341440347,-500.0,0.00013698,2]
[354188874,1740341440356,-500.0,0.00013698,2]
[354188876,1740341440365,-500.0,0.00013698,2]
[354188878,1740341440374,-500.0,0.00013698,2]
[354188879,1740341440383,-500.0,0.00013698,2]
[354188881,1740341440392,-500.0,0.00013698,2]
[354188883,1740341440401,-500.0,0.00013698,2]
[354188886,1740341440410,-641.26,0.00013698,2]
[354188888,1740341440419,-504.06989746,0.00013698,2]
[354188890,1740341440428,-500.0,0.00013698,2]
[354188892,1740341440437,-505.40502135,0.00013698,2]
[354188894,1740341440446,-845.34,0.00013698,2]
[354188896,1740341440454,-223.45375609,0.00013735,2]
[354188898,1740341440463,-1127.59,0.00013777,2]
[354188900,1740341440472,-1127.59,0.00013779,2]
[354188902,1740341440481,-1127.59,0.00013779,2]
[354188904,1740341440491,-500.0,0.0001378,2]
[354188906,1740341440500,-624.56,0.0001378,2]
[354188908,1740341440509,-156.28,0.0001378,2]
[354188910,1740341440518,-500.0,0.0001378,2]
[354188912,1740341440527,-500.0,0.0001378,2]
[354188914,1740341440536,-500.0,0.0001378,2]
[354188916,1740341440546,-500.0,0.0001378,2]
[354188918,1740341440555,-500.0,0.0001378,2]
[354188920,1740341440568,-780.41,0.0001378,2]
[354188922,1740341440577,-554.66,0.0001378,2]
[354188924,1740341440587,-500.0,0.0001378,2]
[354188926,1740341440596,-500.0,0.0001378,2]
[354188928,1740341440606,-520.90307063,0.0001378,2]
[354188930,1740341440615,-1728.75,0.0001378,2]
[354188932,1740341440624,-780.27,0.0001378,2]
[354188934,1740341440633,-500.0,0.0001378,2]
[354188936,1740341440644,-178.55,0.0001378,2]
[354188938,1740341440654,-5823.76,0.0001378,2]
[354188940,1740341440663,-500.0,0.0001378,2]
[354188942,1740341440672,-500.0,0.0001378,2]
[354188944,1740341440681,-500.0,0.0001378,2]
[354188946,1740341440691,-1218.61,0.0001378,2]
[354188948,1740341440700,-918.4,0.0001378,2]
[354188950,1740341440709,-500.0,0.0001378,2]
[354188952,1740341440718,-500.0,0.0001378,2]
[354188954,1740341440728,-500.0,0.0001378,2]
[354188956,1740341440737,-500.0,0.0001378,2]
[354188958,1740341440746,-2927.62,0.0001378,2]
[354188960,1740341440755,-660.84,0.0001378,2]
[354188962,1740341440764,-500.0,0.0001378,2]
[354188964,1740341440773,-1067.24,0.0001378,2]
[354188966,1740341440782,-1347.6,0.0001378,2]
[354188968,1740341440791,-2198.37,0.0001378,2]
[354188970,1740341440800,-1223.33,0.0001378,2]
[354188972,1740341440809,-13184.79,0.0001378,2]
[354188974,1740341440818,-500.0,0.0001378,2]
[354188976,1740341440827,-500.0,0.0001378,2]
[354188978,1740341440836,-4232.56,0.0001378,2]
[354188980,1740341440845,-500.0,0.0001378,2]
[354188982,1740341440854,-520.26,0.0001378,2]
[354188984,1740341440863,-500.0,0.0001378,2]
[354188986,1740341440872,-1209.99,0.0001378,2]
[354188988,1740341440881,-500.0,0.0001378,2]
[354188990,1740341440890,-500.0,0.0001378,2]
[354188992,1740341440899,-500.0,0.0001378,2]
[354188994,1740341440909,-500.0,0.0001378,2]
[354188996,1740341440918,-500.0,0.0001378,2]
[354188998,1740341440927,-500.0,0.0001378,2]
[354189000,1740341440936,-845.34,0.0001378,2]
[354189002,1740341440946,-223.45375609,0.0001379,2]
[354189004,1740341440955,-223.45375609,0.00013845,2]
[354189006,1740341440964,-311.693,0.00013862,2]
[354189008,1740341440973,-172.33857509,0.00013862,2]
[354189010,1740341440983,-1127.59,0.00013862,2]
[354189012,1740341440991,-1127.59,0.00013862,2]
[354189014,1740341441000,-500.0,0.00013863,2]
[354189016,1740341441009,-500.0,0.00013863,2]
[354189018,1740341441019,-500.0,0.00013863,2]
[354189020,1740341441028,-500.0,0.00013863,2]
[354189032,1740341441130,-468.04079161,0.00013863,2]
[354189034,1740341441142,-500.0,0.00013863,2]
[354189037,1740341441152,-780.41,0.00013863,2]
[354189039,1740341441162,-554.66,0.00013863,2]
[354189041,1740341441172,-500.0,0.00013863,2]
[354189043,1740341441182,-500.0,0.00013863,2]
[354189045,1740341441192,-1728.75,0.00013863,2]
[354189047,1740341441201,-780.27,0.00013863,2]
[354189049,1740341441211,-500.0,0.00013863,2]
[354189051,1740341441221,-5823.76,0.00013863,2]
[354189053,1740341441231,-500.0,0.00013863,2]
[354189055,1740341441240,-500.0,0.00013863,2]
[354189057,1740341441250,-500.0,0.00013863,2]
[354189059,1740341441260,-1218.61,0.00013863,2]
[354189061,1740341441269,-918.4,0.00013863,2]
[354189064,1740341441279,-500.0,0.00013863,2]
[354189066,1740341441289,-500.0,0.00013863,2]
[354189068,1740341441298,-500.0,0.00013863,2]
[354189070,1740341441307,-500.0,0.00013863,2]
[354189072,1740341441317,-2927.62,0.00013863,2]
[354189074,1740341441327,-660.84,0.00013863,2]
[354189076,1740341441336,-500.0,0.00013863,2]
[354189078,1740341441346,-1067.24,0.00013863,2]
[354189080,1740341441355,-1347.6,0.00013863,2]
[354189082,1740341441364,-2198.37,0.00013863,2]
[354189084,1740341441374,-1223.33,0.00013863,2]
[354189086,1740341441383,-13184.79,0.00013863,2]
[354189088,1740341441394,-500.0,0.00013863,2]
[354189090,1740341441404,-400.85,0.00013863,2]
[354189092,1740341441413,-4232.56,0.00013863,2]
[354189094,1740341441422,-500.0,0.00013863,2]
[354189096,1740341441432,-520.26,0.00013863,2]
[354189099,1740341441442,-500.0,0.00013863,2]
[354189101,1740341441451,-1209.99,0.00013863,2]
[354189103,1740341441460,-608.77,0.00013863,2]
[354189105,1740341441470,-500.0,0.00013863,2]
[354189107,1740341441479,-500.0,0.00013863,2]
[354189109,1740341441488,-500.0,0.00013863,2]
[354189111,1740341441497,-500.0,0.00013863,2]
[354189113,1740341441507,-500.0,0.00013863,2]
[354189115,1740341441516,-845.34,0.00013863,2]
[354189117,1740341441525,-3000.0,0.00013899,2]
[354189119,1740341441534,-1127.59,0.00013899,2]
[354189121,1740341441544,-151.0,0.000139,2]
[354189123,1740341441553,-151.0,0.000139,2]
[354189125,1740341441566,-151.0,0.000139,2]
[354189127,1740341441575,-151.0,0.000139,2]
[354189129,1740341441584,-151.0,0.000139,2]
[354189131,1740341441594,-203.08948474,0.000139,2]
[354189133,1740341441603,-203.08,0.000139,2]
[354189135,1740341441613,-168.13888515,0.000139,2]
[354189137,1740341441622,-168.13888515,0.000139,2]
[354189139,1740341441632,-168.13888515,0.000139,2]
[354189141,1740341441641,-168.13888515,0.000139,2]
[354189143,1740341441650,-168.13888515,0.000139,2]
[354189145,1740341441660,-168.13888515,0.000139,2]
[354189147,1740341441669,-223.45375609,0.000139,2]
[354189149,1740341441678,-168.13,0.000139,2]
[354189151,1740341441688,-152.57046986,0.000139,2]
[354189153,1740341441697,-152.57046986,0.000139,2]
[354189155,1740341441707,-152.57046986,0.000139,2]
[354189157,1740341441716,-152.57046986,0.000139,2]
[354189159,1740341441726,-152.57046986,0.000139,2]
[354189161,1740341441735,-152.57046986,0.000139,2]
[354189163,1740341441744,-152.57046986,0.000139,2]
[354189165,1740341441753,-152.57046986,0.000139,2]
[354189167,1740341441763,-152.57046986,0.000139,2]
[354189169,1740341441772,-152.57046986,0.000139,2]
[354189171,1740341441781,-152.57046986,0.000139,2]
[354189173,1740341441790,-152.57046986,0.000139,2]
[354189175,1740341441800,-152.57046986,0.000139,2]
[354189177,1740341441809,-152.57046986,0.000139,2]
[354189180,1740341441819,-152.57046986,0.000139,2]
[354189182,1740341441828,-152.57046986,0.000139,2]
[354189184,1740341441838,-152.57046986,0.000139,2]
[354189185,1740341441847,-3176.33183461,0.000139,2]
[354189188,1740341441856,-152.57,0.000139,2]
[354189190,1740341441866,-154.60409759,0.000139,2]
[354189192,1740341441875,-154.60409759,0.000139,2]
[354189194,1740341441884,-154.60409759,0.000139,2]
[354189196,1740341441893,-154.60409759,0.000139,2]
[354189198,1740341441902,-154.60409759,0.000139,2]
[354189200,1740341441911,-154.60409759,0.000139,2]
[354189202,1740341441921,-154.60409759,0.000139,2]
[354189204,1740341441930,-154.60409759,0.000139,2]
[354189206,1740341441939,-154.60409759,0.000139,2]
[354189208,1740341441951,-154.60409759,0.000139,2]
[354189210,1740341441960,-154.60409759,0.000139,2]
[354189212,1740341441970,-154.60409759,0.000139,2]
[354189214,1740341441979,-154.60409759,0.000139,2]
[354189216,1740341441988,-154.6,0.000139,2]
[354189218,1740341441998,-252.52002606,0.000139,2]
[354189220,1740341442008,-252.52002606,0.000139,2]
[354189222,1740341442016,-252.52002606,0.000139,2]
[354189224,1740341442025,-252.52002606,0.000139,2]
[354189226,1740341442035,-252.52002606,0.000139,2]
[354189228,1740341442044,-252.52002606,0.000139,2]
[354189230,1740341442053,-252.52002606,0.000139,2]
[354189232,1740341442062,-252.52002606,0.000139,2]
[354189235,1740341442072,-252.52002606,0.000139,2]
[354189237,1740341442081,-252.52002606,0.000139,2]
[354189239,1740341442090,-252.52002606,0.000139,2]
[354189241,1740341442099,-252.52002606,0.000139,2]
[354189243,1740341442108,-252.52002606,0.000139,2]
[354189245,1740341442117,-252.52002606,0.000139,2]
[354189247,1740341442126,-252.52002606,0.000139,2]
[354189249,1740341442135,-252.52002606,0.000139,2]
[354189251,1740341442145,-252.52002606,0.000139,2]
[354189253,1740341442154,-252.52002606,0.000139,2]
[354189255,1740341442164,-252.52002606,0.000139,2]
[354189257,1740341442173,-252.52,0.000139,2]
[354189259,1740341442183,-323.0,0.0001394,2]
[354189261,1740341442192,-1127.59,0.00013944,2]
[354189263,1740341442202,-1127.59,0.00013944,2]
[354189265,1740341442211,-500.0,0.00013944,2]
[354189267,1740341442220,-403.54617693,0.00013944,2]
[354189269,1740341442229,-500.0,0.00013945,2]
[354189271,1740341442238,-500.0,0.00013945,2]
[354189273,1740341442247,-500.0,0.00013945,2]
[354189275,1740341442257,-500.0,0.00013945,2]
[354189277,1740341442266,-500.0,0.00013945,2]
[354189279,1740341442275,-780.41,0.00013945,2]
[354189281,1740341442284,-554.66,0.00013945,2]
[354189283,1740341442293,-500.0,0.00013945,2]
[354189285,1740341442303,-500.0,0.00013945,2]
[354189287,1740341442312,-1728.75,0.00013945,2]
[354189289,1740341442321,-780.27,0.00013945,2]
[354189291,1740341442330,-5823.76,0.00013945,2]
[354189294,1740341442340,-500.0,0.00013945,2]
[354189296,1740341442349,-500.0,0.00013945,2]
[354189299,1740341442359,-576.4676796,0.00013945,2]
[354189302,1740341442368,-1218.61,0.00013945,2]
[354189304,1740341442377,-918.4,0.00013945,2]
[354189307,1740341442387,-500.0,0.00013945,2]
[354189310,1740341442397,-500.0,0.00013945,2]
[354189312,1740341442406,-500.0,0.00013945,2]
[354189315,1740341442415,-500.0,0.00013945,2]
[354189317,1740341442425,-2927.62,0.00013945,2]
[354189319,1740341442435,-660.84,0.00013945,2]
[354189321,1740341442444,-500.0,0.00013945,2]
[354189323,1740341442453,-1067.24,0.00013945,2]
[354189325,1740341442462,-1347.6,0.00013945,2]
[354189328,1740341442472,-2198.37,0.00013945,2]
[354189331,1740341442481,-1223.33,0.00013945,2]
[354189333,1740341442491,-13184.79,0.00013945,2]
[354189335,1740341442500,-168.56,0.00013945,2]
[354189337,1740341442510,-4232.56,0.00013945,2]
[354189339,1740341442519,-495.54,0.00013945,2]
[354189341,1740341442529,-520.26,0.00013945,2]
[354189343,1740341442539,-500.0,0.00013945,2]
[354189345,1740341442549,-1209.99,0.00013945,2]
[354189347,1740341442559,-500.0,0.00013945,2]
[354189349,1740341442573,-500.0,0.00013945,2]
[354189351,1740341442582,-500.0,0.00013945,2]
[354189353,1740341442591,-500.0,0.00013945,2]
[354189355,1740341442602,-500.0,0.00013945,2]
[354189357,1740341442611,-845.34,0.00013945,2]
[354189359,1740341442620,-2369.34571316,0.00013969,2]
[354189361,1740341442630,-500.0,0.00013973,2]
[354189364,1740341442641,-502.17899761,0.00013973,2]
[354189366,1740341442651,-500.0,0.00013973,2]
[354189368,1740341442660,-500.10290801,0.00013973,2]
[354189370,1740341442669,-500.0,0.00013973,2]
[354189372,1740341442679,-237.90476766,0.00013973,2]
[354189374,1740341442689,-268.25898527,0.00013973,2]
[354189376,1740341442699,-500.0,0.00013973,2]
[354189378,1740341442708,-500.0,0.00013973,2]
[354189380,1740341442717,-500.0,0.00013973,2]
[354189382,1740341442727,-500.76722228,0.00013973,2]
[354189384,1740341442737,-500.0,0.00013973,2]
[354189386,1740341442746,-500.0,0.00013973,2]
[354189388,1740341442756,-1127.59,0.00013998,2]
[354189390,1740341442765,-1127.59,0.00013999,2]
[354189392,1740341442774,-1127.59,0.00013999,2]
[354189394,1740341442783,-1127.59,0.00013999,2]
[354189396,1740341442792,-1127.59,0.00013999,2]
[354189398,1740341442802,-1127.59,0.00013999,2]
[354189400,1740341442811,-1127.59,0.00013999,2]
[354189402,1740341442820,-1127.59,0.00013999,2]
[354189404,1740341442829,-1127.59,0.00013999,2]
[354189406,1740341442838,-1127.59,0.00013999,2]
[354189408,1740341442847,-1127.59,0.00013999,2]
[354189410,1740341442856,-1127.59,0.00013999,2]
[354189412,1740341442865,-1127.78618129,0.00013999,2]
[354189414,1740341442875,-117650.59689405,0.00014,5]
[354189416,1740341442884,-10934.81801912,0.00014,5]
[354189418,1740341442893,-1281706.95944062,0.00014,5]
[354189431,1740341443003,-396.0,0.00013698,2]
[354189434,1740341443015,-104.0,0.00013698,2]
[354189445,1740341443024,-2546.0,0.0001395,2]
[354189448,1740341443122,-960.0,0.0001395,2]
[354189713,1740341445816,-500.0,0.00013698,2]
[354189715,1740341445825,-1912.0,0.000139,2]
[354189717,1740341445837,-1088.0,0.000139,2]
[354189719,1740341445846,-1300.27860784,0.0001395,2]
[354189722,1740341445856,-78587.21467547,0.00014,5]
[354192743,1740342181043,1724.61346706,8.001e-05,2]
[354192744,1740342181074,6098.93653294,8.001e-05,2]
[354192745,1740342302589,160.050489,9.041e-05,2]
[354192748,1740342509529,1119.16123286,0.00018228,90]
[354192779,1740342640134,-600.0,0.00012664,2]
[354192780,1740342640143,-300.0,0.00012705,2]
[354192781,1740342640153,-19117.4065595,0.00012706,2]
[354192782,1740342640162,-6143.32114805,0.000135,2]
[354192783,1740342640171,-1969.0,0.00013594,2]
[354192784,1740342640180,-538.0,0.00013594,2]
[354192785,1740342640189,-2288.0,0.00013594,2]
[354192786,1740342640198,-167.59031709,0.00013598,2]
[354192787,1740342640207,-155.96054634,0.00013598,2]
[354192788,1740342640216,-12924.89674434,0.00013687,2]
[354192789,1740342640226,-500.0,0.00013698,2]
[354192790,1740342640235,-361.91775934,0.00013698,2]
[354192791,1740342640244,-500.0,0.00013698,2]
[354192792,1740342640254,-500.0,0.00013698,2]
[354192793,1740342640263,-500.0,0.00013698,2]
[354192794,1740342640272,-500.0,0.00013698,2]
[354192795,1740342640281,-500.0,0.00013698,2]
[354192796,1740342640290,-500.0,0.00013698,2]
[354192797,1740342640299,-500.0,0.00013698,2]
[354192798,1740342640308,-643.88,0.00013698,2]
[354192799,1740342640316,-500.0,0.00013698,2]
[354192800,1740342640326,-500.0,0.00013698,2]
[354192801,1740342640335,-500.0,0.00013698,2]
[354192802,1740342640344,-500.0,0.00013698,2]
[354192803,1740342640353,-500.0,0.00013698,2]
[354192804,1740342640362,-500.0,0.00013698,2]
[354192805,1740342640372,-612.64194773,0.00013698,2]
[354192806,1740342640381,-500.0,0.00013698,2]
[354192807,1740342640390,-500.0,0.00013698,2]
[354192808,1740342640399,-500.0,0.00013698,2]
[354192809,1740342640409,-500.0,0.00013698,2]
[354192810,1740342640419,-500.0,0.00013698,2]
[354192811,1740342640428,-217.61967346,0.00013698,2]
[354192812,1740342640437,-500.0,0.00013698,2]
[354192813,1740342640446,-500.0,0.00013698,2]
[354192814,1740342640455,-500.0,0.00013698,2]
[354192815,1740342640464,-500.0,0.00013698,2]
[354192816,1740342640473,-500.0,0.00013698,2]
[354192817,1740342640483,-500.0,0.00013698,2]
[354192818,1740342640492,-500.0,0.00013698,2]
[354192819,1740342640502,-500.0,0.00013698,2]
[354192820,1740342640511,-500.0,0.00013698,2]
[354192821,1740342640520,-500.0,0.00013698,2]
[354192822,1740342640529,-500.0,0.00013698,2]
[354192823,1740342640538,-500.0,0.00013698,2]
[354192824,1740342640547,-500.0,0.00013698,2]
[354192825,1740342640556,-500.0,0.00013698,2]
[354192826,1740342640565,-500.0,0.00013698,2]
[354192827,1740342640574,-830.45,0.00013698,2]
[354192828,1740342640583,-500.0,0.00013698,2]
[354192829,1740342640592,-500.0,0.00013698,2]
[354192830,1740342640602,-500.0,0.00013698,2]
[354192831,1740342640611,-500.0,0.00013698,2]
[354192832,1740342640620,-500.0,0.00013698,2]
[354192833,1740342640629,-500.0,0.00013698,2]
[354192834,1740342640638,-500.0,0.00013698,2]
[354192835,1740342640741,-500.0,0.00013698,5]
[354192836,1740342640751,-500.0,0.00013698,2]
[354192837,1740342640760,-500.0,0.00013698,2]
[354192838,1740342640769,-500.0,0.00013698,2]
[354192839,1740342640779,-500.0,0.00013698,2]
[354192840,1740342640788,-500.0,0.00013698,2]
[354192841,1740342640797,-500.0,0.00013698,2]
[354192842,1740342640806,-229.01695678,0.00013698,2]
[354192843,1740342640815,-500.0,0.00013698,2]